[Event "Titled Tuesday Blitz May 10 Early 2022"]
[White "Thomas, Anysia"]
[Black "De Arruda, Leandro Formes"]
[WhiteFideId "670472"]
[BlackFideId "22722009"]
[WhiteElo "2002"]
[BlackElo "1852"]
[Result "1-0"]
[Round "09"]
[TimeControl "180+1"]
[Date "2022.05.11"]
[WhiteClock "0:00:33"]
[BlackClock "0:00:31"]

1. d4 {[%clk 0:03:00]}  d5 {[%clk 0:03:00]} 2. c4 {[%clk 0:03:01]}  e6 {[%clk 0:02:58]} 3. Nf3 {[%clk 0:03:01]}  Nf6 {[%clk 0:02:56]} 4. g3 {[%clk 0:03:02]}  c6 {[%clk 0:02:56]} 5. Bg2 {[%clk 0:03:02]}  Bd6 {[%clk 0:02:55]} 6. O-O {[%clk 0:03:03]}  Nbd7 {[%clk 0:02:55]} 7. Nbd2 {[%clk 0:03:03]}  O-O {[%clk 0:02:56]} 8. Qc2 {[%clk 0:03:04]}  Re8 {[%clk 0:02:54]} 9. e4 {[%clk 0:03:05]}  dxe4 {[%clk 0:02:54]} 10. Nxe4 {[%clk 0:03:05]}  Nxe4 {[%clk 0:02:55]} 11. Qxe4 {[%clk 0:03:06]}  Nf6 {[%clk 0:02:55]} 12. Qe2 {[%clk 0:03:06]}  Nd7 {[%clk 0:02:53]} 13. b3 {[%clk 0:03:05]}  e5 {[%clk 0:02:53]} 14. dxe5 {[%clk 0:02:55]}  Nxe5 {[%clk 0:02:54]} 15. Qc2 {[%clk 0:02:48]}  Nxf3+ {[%clk 0:02:40]} 16. Bxf3 {[%clk 0:02:48]}  Bh3 {[%clk 0:02:40]} 17. Rd1 {[%clk 0:02:45]}  Qe7 {[%clk 0:02:36]} 18. Be3 {[%clk 0:02:43]}  Be5 {[%clk 0:02:31]} 19. Rac1 {[%clk 0:02:33]}  Qf6 {[%clk 0:02:30]} 20. Bh1 {[%clk 0:02:29]}  Bg4 {[%clk 0:02:22]} 21. Re1 {[%clk 0:02:13]}  Rad8 {[%clk 0:02:17]} 22. Be4 {[%clk 0:02:03]}  h6 {[%clk 0:02:12]} 23. Bxa7 {[%clk 0:02:00]}  Bb2 {[%clk 0:02:07]} 24. Rb1 {[%clk 0:01:49]}  Bc3 {[%clk 0:02:01]} 25. Re3 {[%clk 0:01:48]}  Rd2 {[%clk 0:01:56]} 26. Bh7+ {[%clk 0:01:22]}  Kf8 {[%clk 0:01:47]} 27. Bc5+ {[%clk 0:01:21]}  Re7 {[%clk 0:01:44]} 28. Bxe7+ {[%clk 0:01:08]}  Qxe7 {[%clk 0:01:42]} 29. Qxc3 {[%clk 0:01:07]}  Qd7 {[%clk 0:01:31]} 30. Rbe1 {[%clk 0:01:03]}  Be6 {[%clk 0:01:27]} 31. Be4 {[%clk 0:00:52]}  f5 {[%clk 0:01:23]} 32. Bg2 {[%clk 0:00:50]}  Bf7 {[%clk 0:01:18]} 33. Qe5 {[%clk 0:00:47]}  Qc8 {[%clk 0:01:05]} 34. Qe7+ {[%clk 0:00:40]}  Kg8 {[%clk 0:00:49]} 35. Qb4 {[%clk 0:00:39]}  Rxa2 {[%clk 0:00:44]} 36. Re7 {[%clk 0:00:39]}  f4 {[%clk 0:00:37]} 37. Qxb7 {[%clk 0:00:37]}  Qf5 {[%clk 0:00:33]} 38. Qb8+ {[%clk 0:00:34]}  Kh7 {[%clk 0:00:31]} 39. Be4 {[%clk 0:00:33]} 1-0


[Site "https://www.chess.com"]

[Event "Titled Tuesday Blitz May 10 Early 2022"]
[White "Tristan, Leonardo"]
[Black "Dronavalli, Harika"]
[WhiteFideId "113816"]
[BlackFideId "5015197"]
[WhiteElo "2404"]
[BlackElo "2382"]
[Result "1-0"]
[Round "09"]
[TimeControl "180+1"]
[Date "2022.05.10"]
[WhiteClock "0:00:09"]
[BlackClock "0:00:06"]

1. d4 {[%clk 0:03:00]}  Nf6 {[%clk 0:02:59]} 2. Nf3 {[%clk 0:03:01]}  c5 {[%clk 0:02:58]} 3. c3 {[%clk 0:03:00]}  g6 {[%clk 0:02:56]} 4. Bf4 {[%clk 0:03:00]}  Bg7 {[%clk 0:02:54]} 5. e3 {[%clk 0:03:01]}  O-O {[%clk 0:02:51]} 6. Nbd2 {[%clk 0:03:01]}  d6 {[%clk 0:02:46]} 7. Be2 {[%clk 0:02:59]}  Nh5 {[%clk 0:02:33]} 8. Bg5 {[%clk 0:02:59]}  h6 {[%clk 0:02:32]} 9. Bh4 {[%clk 0:02:59]}  Be6 {[%clk 0:02:26]} 10. O-O {[%clk 0:02:56]}  g5 {[%clk 0:02:21]} 11. Ne1 {[%clk 0:02:55]}  gxh4 {[%clk 0:02:01]} 12. Bxh5 {[%clk 0:02:54]}  h3 {[%clk 0:02:00]} 13. g3 {[%clk 0:02:54]}  Qb6 {[%clk 0:02:00]} 14. Nd3 {[%clk 0:02:49]}  cxd4 {[%clk 0:01:33]} 15. exd4 {[%clk 0:02:37]}  Bf5 {[%clk 0:01:30]} 16. Qf3 {[%clk 0:02:30]}  e6 {[%clk 0:01:10]} 17. Bg4 {[%clk 0:02:25]}  Bxd3 {[%clk 0:00:52]} 18. Qxd3 {[%clk 0:02:26]}  Qxb2 {[%clk 0:00:46]} 19. Rfb1 {[%clk 0:02:18]}  Qa3 {[%clk 0:00:45]} 20. Rxb7 {[%clk 0:02:18]}  Qa6 {[%clk 0:00:30]} 21. Qxa6 {[%clk 0:02:12]}  Nxa6 {[%clk 0:00:31]} 22. Bxh3 {[%clk 0:02:07]}  Rfc8 {[%clk 0:00:21]} 23. Bf1 {[%clk 0:02:07]}  Nc7 {[%clk 0:00:20]} 24. Ne4 {[%clk 0:02:00]}  Bf8 {[%clk 0:00:16]} 25. c4 {[%clk 0:01:56]}  Ne8 {[%clk 0:00:15]} 26. Rab1 {[%clk 0:01:32]}  d5 {[%clk 0:00:15]} 27. cxd5 {[%clk 0:01:32]}  exd5 {[%clk 0:00:16]} 28. Nd2 {[%clk 0:01:23]}  Nd6 {[%clk 0:00:17]} 29. Rd7 {[%clk 0:01:22]}  Rd8 {[%clk 0:00:17]} 30. Rxd8 {[%clk 0:01:20]}  Rxd8 {[%clk 0:00:18]} 31. Nf3 {[%clk 0:01:15]}  Bg7 {[%clk 0:00:18]} 32. Ne5 {[%clk 0:01:09]}  Nf5 {[%clk 0:00:17]} 33. Nc6 {[%clk 0:01:08]}  Rc8 {[%clk 0:00:14]} 34. Nxa7 {[%clk 0:00:58]}  Rc3 {[%clk 0:00:11]} 35. Nb5 {[%clk 0:00:56]}  Rc8 {[%clk 0:00:09]} 36. Rd1 {[%clk 0:00:46]}  Ra8 {[%clk 0:00:09]} 37. g4 {[%clk 0:00:41]}  Ne7 {[%clk 0:00:07]} 38. a3 {[%clk 0:00:41]}  Nc6 {[%clk 0:00:07]} 39. Bg2 {[%clk 0:00:38]}  Ra4 {[%clk 0:00:08]} 40. Bxd5 {[%clk 0:00:28]}  Nxd4 {[%clk 0:00:08]} 41. Nxd4 {[%clk 0:00:24]}  Rxd4 {[%clk 0:00:09]} 42. Rxd4 {[%clk 0:00:24]}  Bxd4 {[%clk 0:00:10]} 43. Kg2 {[%clk 0:00:24]}  Kg7 {[%clk 0:00:11]} 44. f4 {[%clk 0:00:24]}  f5 {[%clk 0:00:10]} 45. gxf5 {[%clk 0:00:18]}  Kf6 {[%clk 0:00:11]} 46. Be6 {[%clk 0:00:18]}  Bc3 {[%clk 0:00:12]} 47. Kf3 {[%clk 0:00:15]}  Ke7 {[%clk 0:00:12]} 48. Kg4 {[%clk 0:00:12]}  Kf6 {[%clk 0:00:12]} 49. a4 {[%clk 0:00:11]}  Bd2 {[%clk 0:00:12]} 50. Kf3 {[%clk 0:00:11]}  Ke7 {[%clk 0:00:11]} 51. Ke4 {[%clk 0:00:11]}  Kd6 {[%clk 0:00:12]} 52. Bc4 {[%clk 0:00:10]}  Bc3 {[%clk 0:00:12]} 53. Kd3 {[%clk 0:00:08]}  Bf6 {[%clk 0:00:13]} 54. a5 {[%clk 0:00:08]}  Kc5 {[%clk 0:00:13]} 55. a6 {[%clk 0:00:09]}  Kb6 {[%clk 0:00:11]} 56. Ke4 {[%clk 0:00:09]}  Kc7 {[%clk 0:00:07]} 57. Kd5 {[%clk 0:00:09]}  Bb2 {[%clk 0:00:06]} 58. Ke6 {[%clk 0:00:09]}  Kd8 {[%clk 0:00:06]} 59. a7 {[%clk 0:00:09]} 1-0


[Site "https://www.chess.com"]

[Event "Titled Tuesday Blitz May 10 Early 2022"]
[White "Turutin, Alexander"]
[Black "Matinian, Nikita"]
[WhiteFideId "4180623"]
[BlackFideId "24129100"]
[WhiteElo "2402"]
[BlackElo "2422"]
[Result "0-1"]
[Round "09"]
[TimeControl "180+1"]
[Date "2022.05.11"]
[WhiteClock "0:00:15"]
[BlackClock "0:00:19"]

1. e4 {[%clk 0:03:00]}  c5 {[%clk 0:02:59]} 2. Nf3 {[%clk 0:03:00]}  d6 {[%clk 0:03:00]} 3. Bb5+ {[%clk 0:02:56]}  Bd7 {[%clk 0:02:58]} 4. Bxd7+ {[%clk 0:02:57]}  Nxd7 {[%clk 0:02:59]} 5. O-O {[%clk 0:02:57]}  Ngf6 {[%clk 0:02:58]} 6. Re1 {[%clk 0:02:57]}  Qc7 {[%clk 0:02:56]} 7. b3 {[%clk 0:02:55]}  g5 {[%clk 0:02:55]} 8. Nxg5 {[%clk 0:02:49]}  Rg8 {[%clk 0:02:55]} 9. Nh3 {[%clk 0:02:48]}  Ne5 {[%clk 0:02:47]} 10. Nc3 {[%clk 0:02:44]}  Qd7 {[%clk 0:02:46]} 11. Nf4 {[%clk 0:02:37]}  Bh6 {[%clk 0:02:46]} 12. d3 {[%clk 0:02:31]}  O-O-O {[%clk 0:02:37]} 13. Ncd5 {[%clk 0:01:57]}  Nxd5 {[%clk 0:02:37]} 14. Nxd5 {[%clk 0:01:57]}  Bxc1 {[%clk 0:02:36]} 15. Rxc1 {[%clk 0:01:58]}  Rg7 {[%clk 0:02:17]} 16. Re3 {[%clk 0:01:38]}  f5 {[%clk 0:02:07]} 17. Rg3 {[%clk 0:01:35]}  Rdg8 {[%clk 0:02:06]} 18. exf5 {[%clk 0:01:31]}  Rxg3 {[%clk 0:02:06]} 19. hxg3 {[%clk 0:01:32]}  Rg7 {[%clk 0:01:54]} 20. Qh5 {[%clk 0:01:31]}  b6 {[%clk 0:01:37]} 21. Qh6 {[%clk 0:01:09]}  Rf7 {[%clk 0:01:33]} 22. Qe6 {[%clk 0:01:08]}  Qxe6 {[%clk 0:01:31]} 23. fxe6 {[%clk 0:01:09]}  Rg7 {[%clk 0:01:31]} 24. Re1 {[%clk 0:01:05]}  Nc6 {[%clk 0:01:30]} 25. c3 {[%clk 0:01:01]}  Ne5 {[%clk 0:01:25]} 26. d4 {[%clk 0:00:57]}  Nc6 {[%clk 0:01:24]} 27. dxc5 {[%clk 0:00:50]}  bxc5 {[%clk 0:01:25]} 28. f4 {[%clk 0:00:49]}  Rxg3 {[%clk 0:01:22]} 29. Kf2 {[%clk 0:00:34]}  Rg7 {[%clk 0:01:07]} 30. Kf3 {[%clk 0:00:31]}  Kd8 {[%clk 0:01:08]} 31. g4 {[%clk 0:00:31]}  Ke8 {[%clk 0:01:04]} 32. g5 {[%clk 0:00:31]}  Kf8 {[%clk 0:01:03]} 33. a3 {[%clk 0:00:30]}  a5 {[%clk 0:01:02]} 34. Kg4 {[%clk 0:00:26]}  Rg8 {[%clk 0:01:02]} 35. f5 {[%clk 0:00:23]}  Ne5+ {[%clk 0:01:00]} 36. Rxe5 {[%clk 0:00:23]}  dxe5 {[%clk 0:01:00]} 37. Kh5 {[%clk 0:00:21]}  e4 {[%clk 0:01:00]} 38. f6 {[%clk 0:00:21]}  exf6 {[%clk 0:00:56]} 39. gxf6 {[%clk 0:00:22]}  Rg6 {[%clk 0:00:23]} 40. e7+ {[%clk 0:00:22]}  Kf7 {[%clk 0:00:23]} 41. Nc7 {[%clk 0:00:22]}  Rg8 {[%clk 0:00:22]} 42. e8=Q+ {[%clk 0:00:22]}  Rxe8 {[%clk 0:00:22]} 43. Nxe8 {[%clk 0:00:23]}  e3 {[%clk 0:00:19]} 44. Nd6+ {[%clk 0:00:15]}  Kf8 {[%clk 0:00:19]} 0-1


[Site "https://www.chess.com"]

[Event "Titled Tuesday Blitz May 10 Early 2022"]
[White "Aaditya Dhingra"]
[Black "Sahil, Tickoo"]
[WhiteFideId "25678191"]
[BlackFideId "5019710"]
[WhiteElo "1849"]
[BlackElo "2099"]
[Result "1-0"]
[Round "10"]
[TimeControl "180+1"]
[Date "2022.05.11"]
[WhiteClock "0:00:35"]
[BlackClock "0:00:02"]

1. Nf3 {[%clk 0:03:00]}  d5 {[%clk 0:02:58]} 2. c4 {[%clk 0:02:59]}  e6 {[%clk 0:02:58]} 3. g3 {[%clk 0:02:59]}  Nf6 {[%clk 0:02:55]} 4. Bg2 {[%clk 0:02:59]}  dxc4 {[%clk 0:02:54]} 5. Qa4+ {[%clk 0:02:58]}  Nbd7 {[%clk 0:02:53]} 6. Qxc4 {[%clk 0:02:57]}  a6 {[%clk 0:02:51]} 7. Qc2 {[%clk 0:02:56]}  c5 {[%clk 0:02:44]} 8. O-O {[%clk 0:02:52]}  Be7 {[%clk 0:02:37]} 9. Rd1 {[%clk 0:02:50]}  O-O {[%clk 0:02:10]} 10. d4 {[%clk 0:02:48]}  Qb6 {[%clk 0:02:03]} 11. Nc3 {[%clk 0:02:41]}  cxd4 {[%clk 0:02:00]} 12. Nxd4 {[%clk 0:02:39]}  Ne5 {[%clk 0:01:31]} 13. Bf4 {[%clk 0:02:25]}  Nc6 {[%clk 0:01:26]} 14. Nxc6 {[%clk 0:02:21]}  bxc6 {[%clk 0:01:26]} 15. Be3 {[%clk 0:02:21]}  Qc7 {[%clk 0:01:14]} 16. Na4 {[%clk 0:02:11]}  Bb7 {[%clk 0:01:12]} 17. Bb6 {[%clk 0:02:08]}  Qe5 {[%clk 0:01:00]} 18. Nc5 {[%clk 0:01:59]}  Bxc5 {[%clk 0:00:56]} 19. Bxc5 {[%clk 0:01:54]}  Rfd8 {[%clk 0:00:53]} 20. e4 {[%clk 0:01:53]}  a5 {[%clk 0:00:38]} 21. f4 {[%clk 0:01:42]}  Qc7 {[%clk 0:00:34]} 22. Qf2 {[%clk 0:01:33]}  Rxd1+ {[%clk 0:00:22]} 23. Rxd1 {[%clk 0:01:32]}  Rd8 {[%clk 0:00:22]} 24. Rc1 {[%clk 0:01:28]}  Nd7 {[%clk 0:00:17]} 25. Be7 {[%clk 0:01:20]}  Rc8 {[%clk 0:00:15]} 26. Rd1 {[%clk 0:01:13]}  c5 {[%clk 0:00:15]} 27. Bd6 {[%clk 0:01:12]}  Qb6 {[%clk 0:00:14]} 28. Be7 {[%clk 0:01:09]}  Nf8 {[%clk 0:00:13]} 29. Rc1 {[%clk 0:01:00]}  Nd7 {[%clk 0:00:11]} 30. e5 {[%clk 0:00:58]}  Bxg2 {[%clk 0:00:11]} 31. Kxg2 {[%clk 0:00:56]}  Qc6+ {[%clk 0:00:11]} 32. Kg1 {[%clk 0:00:52]}  c4 {[%clk 0:00:11]} 33. Rd1 {[%clk 0:00:48]}  Nb6 {[%clk 0:00:11]} 34. Rd6 {[%clk 0:00:47]}  Qc7 {[%clk 0:00:06]} 35. Qxb6 {[%clk 0:00:39]}  Qxe7 {[%clk 0:00:06]} 36. Qxa5 {[%clk 0:00:39]}  h6 {[%clk 0:00:04]} 37. Qa6 {[%clk 0:00:38]}  Qc7 {[%clk 0:00:02]} 38. Qb6 {[%clk 0:00:35]} 1-0


[Site "https://www.chess.com"]

[Event "Titled Tuesday Blitz May 10 Early 2022"]
[White "Ambartsumova, Karina"]
[Black "Janaszak, Dawid"]
[WhiteFideId "4166299"]
[BlackFideId "1119206"]
[WhiteElo "2262"]
[BlackElo "2199"]
[Result "1-0"]
[Round "10"]
[TimeControl "180+1"]
[Date "2022.05.11"]
[WhiteClock "0:00:35"]
[BlackClock "0:00:40"]

1. d4 {[%clk 0:03:00]}  Nf6 {[%clk 0:02:59]} 2. Nf3 {[%clk 0:02:59]}  g6 {[%clk 0:02:59]} 3. g3 {[%clk 0:02:59]}  Bg7 {[%clk 0:02:59]} 4. Bg2 {[%clk 0:03:00]}  O-O {[%clk 0:03:00]} 5. O-O {[%clk 0:03:00]}  d6 {[%clk 0:03:00]} 6. b3 {[%clk 0:03:01]}  c5 {[%clk 0:02:59]} 7. Bb2 {[%clk 0:03:01]}  cxd4 {[%clk 0:02:55]} 8. Nxd4 {[%clk 0:03:02]}  d5 {[%clk 0:02:47]} 9. c4 {[%clk 0:03:02]}  dxc4 {[%clk 0:02:45]} 10. bxc4 {[%clk 0:03:03]}  Qb6 {[%clk 0:02:43]} 11. Qb3 {[%clk 0:03:00]}  Nfd7 {[%clk 0:02:44]} 12. e3 {[%clk 0:02:39]}  Nc5 {[%clk 0:02:39]} 13. Qa3 {[%clk 0:02:35]}  Nba6 {[%clk 0:02:27]} 14. Nc3 {[%clk 0:02:29]}  Qb4 {[%clk 0:02:00]} 15. Nd5 {[%clk 0:02:22]}  Qxc4 {[%clk 0:01:50]} 16. Rac1 {[%clk 0:02:07]}  Qd3 {[%clk 0:01:47]} 17. Nxe7+ {[%clk 0:01:28]}  Kh8 {[%clk 0:01:47]} 18. Rxc5 {[%clk 0:01:26]}  Nxc5 {[%clk 0:01:44]} 19. Qxc5 {[%clk 0:01:27]}  Bd7 {[%clk 0:01:27]} 20. Ba1 {[%clk 0:01:09]}  Rab8 {[%clk 0:01:20]} 21. Nb3 {[%clk 0:01:02]}  Bxa1 {[%clk 0:01:11]} 22. Rxa1 {[%clk 0:01:02]}  Be6 {[%clk 0:01:00]} 23. Qe5+ {[%clk 0:01:00]}  f6 {[%clk 0:00:59]} 24. Qxe6 {[%clk 0:01:00]}  a5 {[%clk 0:00:55]} 25. Rc1 {[%clk 0:00:55]}  a4 {[%clk 0:00:55]} 26. Nd4 {[%clk 0:00:49]}  Qd2 {[%clk 0:00:55]} 27. Rc7 {[%clk 0:00:46]}  Qd1+ {[%clk 0:00:40]} 28. Bf1 {[%clk 0:00:46]}  b5 {[%clk 0:00:40]} 29. Nxg6+ {[%clk 0:00:36]}  hxg6 {[%clk 0:00:40]} 30. Qe7 {[%clk 0:00:35]} 1-0


[Site "https://www.chess.com"]

[Event "Titled Tuesday Blitz May 10 Early 2022"]
[White "Ardila, Oscar Humberto"]
[Black "Bas Mas, Jose Joaquin"]
[WhiteFideId "4404742"]
[BlackFideId "22219064"]
[WhiteElo "1928"]
[BlackElo "2233"]
[Result "0-1"]
[Round "10"]
[TimeControl "180+1"]
[Date "2022.05.11"]
[WhiteClock "0:00:06"]
[BlackClock "0:00:12"]

1. d4 {[%clk 0:02:53]}  f5 {[%clk 0:02:59]} 2. c4 {[%clk 0:02:52]}  Nf6 {[%clk 0:02:59]} 3. Nc3 {[%clk 0:02:53]}  e6 {[%clk 0:02:59]} 4. Nf3 {[%clk 0:02:53]}  Bb4 {[%clk 0:02:59]} 5. Bd2 {[%clk 0:02:53]}  Bxc3 {[%clk 0:02:59]} 6. Bxc3 {[%clk 0:02:53]}  O-O {[%clk 0:02:59]} 7. g3 {[%clk 0:02:53]}  Ne4 {[%clk 0:02:59]} 8. Rc1 {[%clk 0:02:52]}  b6 {[%clk 0:02:57]} 9. Bg2 {[%clk 0:02:52]}  Bb7 {[%clk 0:02:56]} 10. O-O {[%clk 0:02:52]}  d6 {[%clk 0:02:56]} 11. d5 {[%clk 0:02:52]}  e5 {[%clk 0:02:54]} 12. Nd2 {[%clk 0:02:50]}  Nxc3 {[%clk 0:02:48]} 13. Rxc3 {[%clk 0:02:50]}  a5 {[%clk 0:02:46]} 14. b3 {[%clk 0:02:45]}  Nd7 {[%clk 0:02:45]} 15. a3 {[%clk 0:02:44]}  Qg5 {[%clk 0:02:40]} 16. b4 {[%clk 0:02:39]}  axb4 {[%clk 0:02:39]} 17. axb4 {[%clk 0:02:40]}  Ra2 {[%clk 0:02:36]} 18. Nf3 {[%clk 0:02:36]}  Qf6 {[%clk 0:02:34]} 19. Qb3 {[%clk 0:02:26]}  Rfa8 {[%clk 0:02:31]} 20. e3 {[%clk 0:02:12]}  h6 {[%clk 0:02:04]} 21. Rfc1 {[%clk 0:02:06]}  Qf7 {[%clk 0:01:57]} 22. Nh4 {[%clk 0:02:02]}  g5 {[%clk 0:01:56]} 23. Nf3 {[%clk 0:02:02]}  Kg7 {[%clk 0:01:43]} 24. Ne1 {[%clk 0:01:57]}  e4 {[%clk 0:01:41]} 25. Nc2 {[%clk 0:01:51]}  Ne5 {[%clk 0:01:40]} 26. Nd4 {[%clk 0:01:42]}  Bc8 {[%clk 0:01:38]} 27. c5 {[%clk 0:01:41]}  bxc5 {[%clk 0:01:34]} 28. bxc5 {[%clk 0:01:40]}  Nd3 {[%clk 0:01:34]} 29. Rf1 {[%clk 0:01:40]}  Nxc5 {[%clk 0:01:32]} 30. Rxc5 {[%clk 0:01:38]}  dxc5 {[%clk 0:01:32]} 31. Nc6 {[%clk 0:01:33]}  Qf6 {[%clk 0:01:15]} 32. Qc4 {[%clk 0:01:30]}  Bd7 {[%clk 0:01:07]} 33. Qxc5 {[%clk 0:01:29]}  Bxc6 {[%clk 0:01:06]} 34. dxc6 {[%clk 0:01:28]}  R2a5 {[%clk 0:01:01]} 35. Qb4 {[%clk 0:01:15]}  R5a6 {[%clk 0:00:45]} 36. g4 {[%clk 0:01:14]}  Rb6 {[%clk 0:00:41]} 37. Qd2 {[%clk 0:01:12]}  Rd8 {[%clk 0:00:40]} 38. Qa5 {[%clk 0:01:06]}  Rxc6 {[%clk 0:00:32]} 39. gxf5 {[%clk 0:01:06]}  Rc4 {[%clk 0:00:28]} 40. Rb1 {[%clk 0:00:56]}  Rf8 {[%clk 0:00:20]} 41. Qd5 {[%clk 0:00:54]}  Rc6 {[%clk 0:00:17]} 42. Bxe4 {[%clk 0:00:52]}  Rd6 {[%clk 0:00:17]} 43. Qc4 {[%clk 0:00:51]}  Rd7 {[%clk 0:00:16]} 44. Rc1 {[%clk 0:00:50]}  Re7 {[%clk 0:00:16]} 45. f3 {[%clk 0:00:46]}  Qe5 {[%clk 0:00:17]} 46. Qd4 {[%clk 0:00:43]}  Qxd4 {[%clk 0:00:16]} 47. exd4 {[%clk 0:00:44]}  g4 {[%clk 0:00:16]} 48. Rc6 {[%clk 0:00:30]}  gxf3 {[%clk 0:00:15]} 49. Rg6+ {[%clk 0:00:30]}  Kh8 {[%clk 0:00:15]} 50. Rxh6+ {[%clk 0:00:30]}  Rh7 {[%clk 0:00:15]} 51. Rxh7+ {[%clk 0:00:25]}  Kxh7 {[%clk 0:00:15]} 52. Kf2 {[%clk 0:00:25]}  Kg7 {[%clk 0:00:14]} 53. Kxf3 {[%clk 0:00:25]}  Kf6 {[%clk 0:00:15]} 54. Kf4 {[%clk 0:00:19]}  Rh8 {[%clk 0:00:15]} 55. Kg3 {[%clk 0:00:18]}  Kg5 {[%clk 0:00:15]} 56. Bd3 {[%clk 0:00:13]}  Rh4 {[%clk 0:00:14]} 57. d5 {[%clk 0:00:12]}  Rd4 {[%clk 0:00:14]} 58. Bc2 {[%clk 0:00:11]}  Rxd5 {[%clk 0:00:14]} 59. h4+ {[%clk 0:00:11]}  Kf6 {[%clk 0:00:13]} 60. Kg4 {[%clk 0:00:12]}  Rc5 {[%clk 0:00:13]} 61. Bd3 {[%clk 0:00:12]}  Rd5 {[%clk 0:00:13]} 62. Bc2 {[%clk 0:00:12]}  Rd4+ {[%clk 0:00:13]} 63. Kh5 {[%clk 0:00:12]}  c5 {[%clk 0:00:13]} 64. Bb1 {[%clk 0:00:10]}  c4 {[%clk 0:00:13]} 65. Bc2 {[%clk 0:00:11]}  c3 {[%clk 0:00:13]} 66. Bb1 {[%clk 0:00:11]}  Rf4 {[%clk 0:00:13]} 67. Bc2 {[%clk 0:00:09]}  Rxf5+ {[%clk 0:00:13]} 68. Kg4 {[%clk 0:00:08]}  Rd5 {[%clk 0:00:13]} 69. h5 {[%clk 0:00:07]}  Rd2 {[%clk 0:00:13]} 70. Be4 {[%clk 0:00:07]}  c2 {[%clk 0:00:13]} 71. h6 {[%clk 0:00:06]}  c1=Q {[%clk 0:00:12]} 0-1


[Site "https://www.chess.com"]

[Event "Titled Tuesday Blitz May 10 Early 2022"]
[White "Atakhan, Abtin"]
[Black "Xu, Yi"]
[WhiteFideId "22502203"]
[BlackFideId "8605564"]
[WhiteElo "2094"]
[BlackElo "2471"]
[Result "0-1"]
[Round "10"]
[TimeControl "180+1"]
[Date "2022.05.10"]
[WhiteClock "0:00:54"]
[BlackClock "0:01:37"]

1. c4 {[%clk 0:03:00]}  e6 {[%clk 0:02:56]} 2. Nf3 {[%clk 0:03:00]}  g5 {[%clk 0:02:55]} 3. g3 {[%clk 0:03:01]}  Bg7 {[%clk 0:02:53]} 4. d4 {[%clk 0:02:57]}  g4 {[%clk 0:02:52]} 5. Ne5 {[%clk 0:02:56]}  h5 {[%clk 0:02:48]} 6. e3 {[%clk 0:02:44]}  c5 {[%clk 0:02:47]} 7. Bg2 {[%clk 0:02:39]}  d6 {[%clk 0:02:45]} 8. Nd3 {[%clk 0:02:39]}  cxd4 {[%clk 0:02:44]} 9. exd4 {[%clk 0:02:39]}  Bxd4 {[%clk 0:02:43]} 10. O-O {[%clk 0:02:33]}  Ne7 {[%clk 0:02:35]} 11. Nd2 {[%clk 0:02:18]}  Nbc6 {[%clk 0:02:29]} 12. Ne4 {[%clk 0:02:16]}  f5 {[%clk 0:02:23]} 13. Ng5 {[%clk 0:02:10]}  h4 {[%clk 0:02:21]} 14. Nf4 {[%clk 0:02:05]}  hxg3 {[%clk 0:02:11]} 15. hxg3 {[%clk 0:02:04]}  e5 {[%clk 0:01:54]} 16. Re1 {[%clk 0:01:45]}  Qb6 {[%clk 0:01:47]} 17. Be3 {[%clk 0:01:29]}  exf4 {[%clk 0:01:37]} 18. Bxd4 {[%clk 0:00:54]}  Nxd4 {[%clk 0:01:37]} 0-1


[Site "https://www.chess.com"]

[Event "Titled Tuesday Blitz May 10 Early 2022"]
[White "Azarov, Sergei"]
[Black "Samant Aditya S"]
[WhiteFideId "13501470"]
[BlackFideId "35080580"]
[WhiteElo "2494"]
[BlackElo "1916"]
[Result "1-0"]
[Round "10"]
[TimeControl "180+1"]
[Date "2022.05.10"]
[WhiteClock "0:00:22"]
[BlackClock "0:00:02"]

1. e4 {[%clk 0:03:00]}  c5 {[%clk 0:03:00]} 2. Nf3 {[%clk 0:03:00]}  d6 {[%clk 0:03:00]} 3. d4 {[%clk 0:03:01]}  cxd4 {[%clk 0:03:01]} 4. Nxd4 {[%clk 0:03:01]}  Nf6 {[%clk 0:03:02]} 5. Nc3 {[%clk 0:03:01]}  Nc6 {[%clk 0:03:03]} 6. Bc4 {[%clk 0:02:59]}  e6 {[%clk 0:03:03]} 7. Be3 {[%clk 0:02:58]}  a6 {[%clk 0:03:03]} 8. Qe2 {[%clk 0:02:57]}  Qc7 {[%clk 0:03:03]} 9. O-O-O {[%clk 0:02:56]}  Na5 {[%clk 0:03:04]} 10. Bd3 {[%clk 0:02:56]}  b5 {[%clk 0:03:04]} 11. Rhe1 {[%clk 0:02:47]}  Bb7 {[%clk 0:03:03]} 12. a3 {[%clk 0:02:36]}  Be7 {[%clk 0:03:01]} 13. g4 {[%clk 0:02:30]}  O-O {[%clk 0:02:54]} 14. g5 {[%clk 0:02:30]}  Nd7 {[%clk 0:02:54]} 15. f4 {[%clk 0:02:30]}  Nc5 {[%clk 0:01:48]} 16. Kb1 {[%clk 0:02:23]}  Nxd3 {[%clk 0:01:41]} 17. cxd3 {[%clk 0:02:19]}  Nc6 {[%clk 0:01:41]} 18. f5 {[%clk 0:02:14]}  Nxd4 {[%clk 0:01:11]} 19. Bxd4 {[%clk 0:02:14]}  e5 {[%clk 0:01:12]} 20. Be3 {[%clk 0:02:07]}  d5 {[%clk 0:00:49]} 21. Nxd5 {[%clk 0:01:45]}  Bxd5 {[%clk 0:00:48]} 22. exd5 {[%clk 0:01:46]}  Rfd8 {[%clk 0:00:37]} 23. f6 {[%clk 0:01:40]}  Bf8 {[%clk 0:00:38]} 24. Qf3 {[%clk 0:01:26]}  Qd7 {[%clk 0:00:36]} 25. d4 {[%clk 0:01:19]}  Qxd5 {[%clk 0:00:24]} 26. Qxd5 {[%clk 0:01:19]}  Rxd5 {[%clk 0:00:25]} 27. dxe5 {[%clk 0:01:20]}  Rxe5 {[%clk 0:00:26]} 28. Bd2 {[%clk 0:01:11]}  Rf5 {[%clk 0:00:20]} 29. Rf1 {[%clk 0:01:02]}  Rxf1 {[%clk 0:00:13]} 30. Rxf1 {[%clk 0:01:03]}  Rd8 {[%clk 0:00:13]} 31. Bc3 {[%clk 0:01:03]}  Rd5 {[%clk 0:00:10]} 32. Re1 {[%clk 0:00:57]}  Rd8 {[%clk 0:00:06]} 33. Kc2 {[%clk 0:00:55]}  h6 {[%clk 0:00:06]} 34. gxh6 {[%clk 0:00:44]}  gxf6 {[%clk 0:00:04]} 35. Rf1 {[%clk 0:00:37]}  Bxh6 {[%clk 0:00:03]} 36. Rxf6 {[%clk 0:00:36]}  Bg7 {[%clk 0:00:04]} 37. Rxa6 {[%clk 0:00:34]}  Rc8 {[%clk 0:00:02]} 38. Ra5 {[%clk 0:00:27]}  Bxc3 {[%clk 0:00:02]} 39. bxc3 {[%clk 0:00:27]}  Rc5 {[%clk 0:00:02]} 40. a4 {[%clk 0:00:26]}  Rh5 {[%clk 0:00:02]} 41. axb5 {[%clk 0:00:23]}  Rxh2+ {[%clk 0:00:03]} 42. Kb3 {[%clk 0:00:23]}  Kf8 {[%clk 0:00:03]} 43. b6 {[%clk 0:00:22]}  Rh6 {[%clk 0:00:02]} 44. Rb5 {[%clk 0:00:22]}  Rh1 {[%clk 0:00:01]} 45. b7 {[%clk 0:00:21]}  Rb1+ {[%clk 0:00:02]} 46. Kc4 {[%clk 0:00:22]} 1-0


[Site "https://www.chess.com"]